{"text_format":"2","workbook":"xlsx","n_sheets":4,"sheets":["Kitöltési útmutató és info.","Termékkategóriák","1.részajánlati kör","2.részajánlati kör"],"not_rendered":{"charts":0,"images":0,"macros":0,"external_links":0,"defined_names":3,"comments":0,"pivot_tables":0},"unopened":[],"bounds":{"document_bytes":16777216,"sheet_cells":100000,"run_cost":"one","rows_first":2000,"rows_last":500,"rows_between":2000,"halvings":0,"cell_chars":16384,"cell_head_chars":4096},"cells_cut":0,"cells_raw":0,"read":"whole","date_system":"1900"}

{"sheet":"Kitöltési útmutató és info.","index":0,"n_rows":11,"n_cols":4,"rows_kept":11,"cut":false,"hidden":false,"merged":[[0,0,0,3],[1,0,8,0],[9,1,9,2],[10,1,10,2],[9,0,10,0]]}
["Kitöltési útmutató és további információ az Igénylők részére (részletes leírás a tájékoztató levélben található): "]
["Kitöltési útmutató","1.","Temékkategória kiválasztása","Valamennyi beszerezni kívánt terméket szükséges besrolni a kísérőlevél mellékleteként megküldött termékkategóriák valamelyikébe, a legördülő menü lehetőségekből kiválasztva. "]
[null,"2.","Termék neve","A beszerezni kívánt termék nevének megadása, szakmai elnevezése szükséges. Cikkszám, katalógusszám megadása nem elegendő!"]
[null,"3.","Termékjellemzők, lírás, minőség","A részletes termékleírás, elvárt termékjellemzők, ill. egyéb elvárások megadása szükséges. Gyártói cikkszám, katalógusszám megadása önmagában nem elegendő! Amennyiben a termék nem helyettesíthető más gyártóéval, úgy a részletes leírás mellett a gyártó megjelölést és az előzménykísérletre történő hivatkozást itt kell megadni."]
[null,"4.","Kiszerelés, csomagolás","A beszerezni kívánt kiszerelés megadása szükséges, a mennyiségi egységet és a mértékegységet külön cellában kérjük megadni!"]
[null,"5.","Igényelt / Tervezett mennyiség","Az E-F) oszlop szerinti kiszerelésből beszerezni kívánt mennyiséget kérjük megadni.\nKeretszerződés megkötésére irányuló eljárás esetén tervezett mennyiség megadása szükséges."]
[null,"6.","Vételi opció fenntartása","Amennyiben van olyan termék, amelynek beszerzési igénye csak feltételesen merül fel (pl. a kutatások előrehaladtával válik ismertté, hogy arra ténylegesen szükség lesz-e, vagy sem). Csak keretszerződés esetén értelmezhető, ez esetben a százalékos mérték megadása is szükséges."]
[null,"7.","Szállítási cím","Az a pontos cím (egyetemi egység, irányítószám, város, utca, házszám, épület/emelet/stb.) ahová a terméket kérik leszállítani. "]
[null,"8.","Elvárt szállítási határidő","A szerződés aláírásától számított időtartamban (hónap vagy munkanap) megadva."]
["További információ","A részajánlati körök kialakításáról",null,"A részajánlati körök száma módosítható, jelen táblázatban tájékoztató jelleggel 2 részajánlati kör került feltüntetésre. A részajánlati körök sorszáma, illetve megnevezése a véglegesített ajántlattételi szakaszban, különösen összesített igények esetén eltérhet a jelen táblázatban megadottaktól. A részajánlati körök kialakításakor kérjük figyelembe venni azok ajánlattételre való megfelelőségét, a verseny biztosításának szem előtt tartásával."]
[null,"A közbeszerzés tárgya szerinti szakértelemmel rendelkező személy kiválasztásáról",null,"A közbeszerzés szakmai tárgya szerinti, a beszerzést kezdeményező egység vezetője vagy az általa felkért személy, kinek kiválasztásakor kérjük figyelembe venni, hogy a közbeszerzés tárgya szerinti szakértelemmel rendelkező személy aktív részvételére szükség van a közbeszerzési eljárás során: többek között jelen táblázattal, valamint az eljárás előkészítésekor felmerülő kérdésekben, a műszaki specifikáció meghatározásában, az eljárás iránt érdeklődő, potenciális ajánlattevők által esetlegesen érkező kiegészítő tájékoztatás-kérések megválaszolásában, a benyújtott ajánlatok szakmai értékelésében, a bírálatban, valamint az eljárás során keletkező egyéb esetekben, melyek szakmai, illetve az igénylő egység részéről véleményezést igényelnek, továbbá projekt esetében az eljárás ellenőrzésében felmerülő szakmai kérdések megválaszolásában."]

{"sheet":"Termékkategóriák","index":1,"n_rows":10,"n_cols":3,"rows_kept":10,"cut":false,"hidden":false,"merged":[[2,0,9,0],[0,0,0,2]]}
["Termékkategória kiválasztása"]
["Termék főkategória","VEGYSZEREK_REAGENSEK","LABORESZKÖZÖK_FOGYÓESZKÖZÖK"]
["Termék alkategória","Általános vegyszerek, reagensek","Üveg fogyóeszközök"]
[null,"Speciális vegyszerek, reagensek","Porcelán és ásványi anyagból készült fogyóeszközök"]
[null,"Biopolimerek, valamint az ezek előállításához és vizsgálatához szükséges vegyszerek, alapanyagok, reagensek","Többször használatos műanyag fogyóeszközök"]
[null,"Műszaki polimerek, valamint az ezek előállításához és vizsgálatához szükséges vegyszerek, alapanyagok, reagensek","Egyszer használatos műanyag fogyóeszközök"]
[null,"Biológiai és diagnosztikai kittek, tesztek","Fém fogyóeszközök"]
[null,"Egyéb analitikai célú fogyóeszközök","Papír anyagú fogyóeszközök"]
[null,null,"Védő- és jelzőeszközök"]
[null,null,"Laboratóriumi kis eszközök"]

{"sheet":"1.részajánlati kör","index":2,"n_rows":67,"n_cols":26,"rows_kept":67,"cut":false,"hidden":false,"merged":[[14,0,16,0],[14,3,16,3],[14,4,16,4],[14,5,14,6],[15,5,16,5],[15,6,16,6],[14,1,14,2],[14,25,16,25],[14,7,16,7],[14,9,16,9],[14,10,16,10],[15,20,16,20],[14,11,14,20],[14,21,14,22],[15,11,15,13],[15,14,15,16],[15,17,15,19],[15,22,16,22],[15,21,16,21],[14,8,15,8],[15,1,16,1],[15,2,16,2],[8,1,8,2],[14,23,16,23],[14,24,16,24],[12,11,12,25],[13,11,13,25],[13,0,13,10],[12,0,12,10]]}
[]
[null,"Igénylő szervezeti egység:"]
[null,"Közbeszerés tárgya szerinti szakértelemmel rendelkező személy\n(név, beosztás, elérhetőség):"]
[null,"Fedezet forrása / Projektazonosító:"]
[null,"Az adott részajánlati kör megnevezése:"]
[null,"Becsült érték összege\na T oszlop adatai alapján\naz adott részajánlati kör tekintetében\n(nettó HUF):",{"$f":"SUM(U18:U67)","v":0}]
[null,"Rendelkezésre álló fedezet összege\na W oszlop adatai alapján\naz adott részajánlati kör tekintetében\n(nettó HUF):",{"$f":"SUM(X18:X67)","v":0}]
[]
[null,"Keretszerződés megkötésére irányuló eljárás esetén szükséges további adatok"]
[null,"Keretösszeg az adott részajánlati kör tekintetében (nettó HUF):"]
[null,"Keretszerződés hatálya\n(év / hónap / munkanap):"]
[]
["Igénylő által meghatározott műszaki leírás ",{"$nulls":10},"Előkészítés egyéb információi"]
["(valamennyi mező kitöltése szükséges, üres mezők esetén a beszerzés nem indítható meg)",{"$nulls":10},"(valamennyi mező kitöltése szükséges, üres mezők esetén a beszerzés nem indítható meg)"]
["Tételek száma ","Termékkategória kiválasztása1\n(a DBR műszaki leírása alapján) ",null,"Termék neve2","Termékjellemzők, leírás, minőség3","Kiszerelés, csomagolás4",null,"Igényelt / Tervezett mennyiség5      (az E-F) oszlop szerinti kiszerelésből)","Vételi jog opció fenntartása6 (Igen/Nem) (opció csak keretszerződés esetén értelmezhető)","Szállítási cím7","Elvárt szállítási határidő8 (hónapban vagy munkanapban megadva)","Becsült érték meghatározás",{"$nulls":9},"Nettó egységár meghatározásának módja",null,"Rendelkezésre álló fedezet összege (nettó HUF)","Egyediség indoklása\namennyiben releváns","Szakmai kapcsolattartó neve, elérhetőségei (email, telefonszám/mobil)\namennyiben eltér a C3 cellában megadottaktól"]
[null,"Termék főkategória","Termék alkategória",null,null,"Mennyisége (pl. 1, 5, 20, 25, 500 stb...)","Mérték-egysége (pl. kg, g, l, ml, db, ug  stb…)",{"$nulls":4},"Szakma által ismert gyártó, forgalmazó 1.",null,null,"Szakma által ismert gyártó, forgalmazó 2.",null,null,"Szakma által ismert gyártó, forgalmazó 3.",null,null,"Becsült érték\n3 db indikatív ajánlat alapján (nettó HUF)","korábbi megrendelések, szerződésel alapján / indikatív ajánlat alapján / \ntermékre mutató honlap link(ek) / szakértői becslés alapján","linkek megadása esetében a letöltés dátumának megjelölése"]
[{"$nulls":8},"Igen válasz esetén %-os mérték megadása is szükséges",null,null,"Cég neve","Egységár (nettó HUF)","Érték összesen (nettó HUF)","Cég neve","Egységár (nettó HUF)","Érték összesen (nettó HUF)","Cég neve","Egységár (nettó HUF)","Érték összesen (nettó HUF)"]
[1,{"$nulls":11},0,{"$f":"H18*M18","v":0},null,0,{"$f":"H18*P18","v":0},null,0,{"$f":"H18*S18","v":0},{"$f":"AVERAGE(N18,Q18,T18)","v":0},null,null,0]
[2,{"$nulls":11},0,0,null,0,0,null,0,0,{"$f":"AVERAGE(N19,Q19,T19)","v":0},null,null,0]
[3,{"$nulls":11},0,0,null,0,0,null,0,0,{"$f":"AVERAGE(N20,Q20,T20)","v":0},null,null,0]
[4,{"$nulls":11},0,0,null,0,0,null,0,0,0,null,null,0]
[5,{"$nulls":11},0,0,null,0,0,null,0,0,0,null,null,0]
[6,{"$nulls":11},0,0,null,0,0,null,0,0,0,null,null,0]
[7,{"$nulls":11},0,0,null,0,0,null,0,0,0,null,null,0]
[8,{"$nulls":11},0,0,null,0,0,null,0,0,0,null,null,0]
[9,{"$nulls":11},0,0,null,0,0,null,0,0,0,null,null,0]
[10,{"$nulls":11},0,0,null,0,0,null,0,0,0,null,null,0]
[11,{"$nulls":11},0,0,null,0,0,null,0,0,0,null,null,0]
[12,{"$nulls":11},0,0,null,0,0,null,0,0,0,null,null,0]
[13,{"$nulls":11},0,0,null,0,0,null,0,0,0,null,null,0]
[14,{"$nulls":11},0,0,null,0,0,null,0,0,0,null,null,0]
[15,{"$nulls":11},0,0,null,0,0,null,0,0,0,null,null,0]
[16,{"$nulls":11},0,0,null,0,0,null,0,0,0,null,null,0]
[17,{"$nulls":11},0,0,null,0,0,null,0,0,0,null,null,0]
[18,{"$nulls":11},0,0,null,0,0,null,0,0,0,null,null,0]
[19,{"$nulls":11},0,0,null,0,0,null,0,0,0,null,null,0]
[20,{"$nulls":11},0,0,null,0,0,null,0,0,0,null,null,0]
[21,{"$nulls":11},0,0,null,0,0,null,0,0,0,null,null,0]
[22,{"$nulls":11},0,0,null,0,0,null,0,0,0,null,null,0]
[23,{"$nulls":11},0,0,null,0,0,null,0,0,0,null,null,0]
[24,{"$nulls":11},0,0,null,0,0,null,0,0,0,null,null,0]
[25,{"$nulls":11},0,0,null,0,0,null,0,0,0,null,null,0]
[26,{"$nulls":11},0,0,null,0,0,null,0,0,0,null,null,0]
[27,{"$nulls":11},0,0,null,0,0,null,0,0,0,null,null,0]
[28,{"$nulls":11},0,0,null,0,0,null,0,0,0,null,null,0]
[29,{"$nulls":11},0,0,null,0,0,null,0,0,0,null,null,0]
[30,{"$nulls":11},0,0,null,0,0,null,0,0,0,null,null,0]
[31,{"$nulls":11},0,0,null,0,0,null,0,0,0,null,null,0]
[32,{"$nulls":11},0,0,null,0,0,null,0,0,0,null,null,0]
[33,{"$nulls":11},0,{"$f":"H50*M50","v":0},null,0,{"$f":"H50*P50","v":0},null,0,{"$f":"H50*S50","v":0},0,null,null,0]
[34,{"$nulls":11},0,0,null,0,0,null,0,0,0,null,null,0]
[35,{"$nulls":11},0,0,null,0,0,null,0,0,0,null,null,0]
[36,{"$nulls":11},0,0,null,0,0,null,0,0,0,null,null,0]
[37,{"$nulls":11},0,0,null,0,0,null,0,0,0,null,null,0]
[38,{"$nulls":11},0,0,null,0,0,null,0,0,0,null,null,0]
[39,{"$nulls":11},0,0,null,0,0,null,0,0,0,null,null,0]
[40,{"$nulls":11},0,0,null,0,0,null,0,0,0,null,null,0]
[41,{"$nulls":11},0,0,null,0,0,null,0,0,0,null,null,0]
[42,{"$nulls":11},0,0,null,0,0,null,0,0,0,null,null,0]
[43,{"$nulls":11},0,0,null,0,0,null,0,0,0,null,null,0]
[44,{"$nulls":11},0,0,null,0,0,null,0,0,0,null,null,0]
[45,{"$nulls":11},0,0,null,0,0,null,0,0,0,null,null,0]
[46,{"$nulls":11},0,0,null,0,0,null,0,0,0,null,null,0]
[47,{"$nulls":11},0,0,null,0,0,null,0,0,0,null,null,0]
[48,{"$nulls":11},0,0,null,0,0,null,0,0,0,null,null,0]
[49,{"$nulls":11},0,0,null,0,0,null,0,0,0,null,null,0]
[50,{"$nulls":11},0,0,null,0,0,null,0,0,0,null,null,0]

{"sheet":"2.részajánlati kör","index":3,"n_rows":67,"n_cols":26,"rows_kept":67,"cut":false,"hidden":false,"merged":[[14,23,16,23],[14,24,16,24],[14,25,16,25],[15,1,16,1],[15,2,16,2],[15,5,16,5],[15,6,16,6],[15,11,15,13],[15,14,15,16],[15,17,15,19],[14,7,16,7],[14,8,15,8],[14,9,16,9],[14,10,16,10],[14,11,14,20],[14,21,14,22],[15,20,16,20],[15,21,16,21],[15,22,16,22],[8,1,8,2],[12,0,12,10],[12,11,12,25],[13,0,13,10],[13,11,13,25],[14,0,16,0],[14,1,14,2],[14,3,16,3],[14,4,16,4],[14,5,14,6]]}
[]
[null,"Igénylő szervezeti egység:"]
[null,"Közbeszerés tárgya szerinti szakértelemmel rendelkező személy\n(név, beosztás, elérhetőség):"]
[null,"Fedezet forrása / Projektazonosító:"]
[null,"Az adott részajánlati kör megnevezése:"]
[null,"Becsült érték összege\na T oszlop adatai alapján\naz adott részajánlati kör tekintetében\n(nettó HUF):",{"$f":"SUM(U18:U67)","v":0}]
[null,"Rendelkezésre álló fedezet összege\na W oszlop adatai alapján\naz adott részajánlati kör tekintetében\n(nettó HUF):",{"$f":"SUM(X18:X67)","v":0}]
[]
[null,"Keretszerződés megkötésére irányuló eljárás esetén szükséges további adatok"]
[null,"Keretösszeg az adott részajánlati kör tekintetében (nettó HUF):"]
[null,"Keretszerződés hatálya\n(év / hónap / munkanap):"]
[]
["Igénylő által meghatározott műszaki leírás ",{"$nulls":10},"Előkészítés egyéb információi"]
["(valamennyi mező kitöltése szükséges, üres mezők esetén a beszerzés nem indítható meg)",{"$nulls":10},"(valamennyi mező kitöltése szükséges, üres mezők esetén a beszerzés nem indítható meg)"]
["Tételek száma ","Termékkategória kiválasztása1\n(a DBR műszaki leírása alapján) ",null,"Termék neve2","Termékjellemzők, leírás, minőség3","Kiszerelés, csomagolás4",null,"Igényelt / Tervezett mennyiség5      (az E-F) oszlop szerinti kiszerelésből)","Vételi jog opció fenntartása6 (Igen/Nem) (opció csak keretszerződés esetén értelmezhető)","Szállítási cím7","Elvárt szállítási határidő8 (hónapban vagy munkanapban megadva)","Becsült érték meghatározás",{"$nulls":9},"Nettó egységár meghatározásának módja",null,"Rendelkezésre álló fedezet összege (nettó HUF)","Egyediség indoklása\namennyiben releváns","Szakmai kapcsolattartó neve, elérhetőségei (email, telefonszám/mobil)\namennyiben eltér a C3 cellában megadottaktól"]
[null,"Termék főkategória","Termék alkategória",null,null,"Mennyisége (pl. 1, 5, 20, 25, 500 stb...)","Mérték-egysége (pl. kg, g, l, ml, db, ug  stb…)",{"$nulls":4},"Szakma által ismert gyártó, forgalmazó 1.",null,null,"Szakma által ismert gyártó, forgalmazó 2.",null,null,"Szakma által ismert gyártó, forgalmazó 3.",null,null,"Becsült érték\n3 db indikatív ajánlat alapján (nettó HUF)","korábbi megrendelések, szerződésel alapján / indikatív ajánlat alapján / \ntermékre mutató honlap link(ek) / szakértői becslés alapján","linkek megadása esetében a letöltés dátumának megjelölése"]
[{"$nulls":8},"Igen válasz esetén %-os mérték megadása is szükséges",null,null,"Cég neve","Egységár (nettó HUF)","Érték összesen (nettó HUF)","Cég neve","Egységár (nettó HUF)","Érték összesen (nettó HUF)","Cég neve","Egységár (nettó HUF)","Érték összesen (nettó HUF)"]
[1,{"$nulls":11},0,{"$f":"H18*M18","v":0},null,0,{"$f":"H18*P18","v":0},null,0,{"$f":"H18*S18","v":0},{"$f":"AVERAGE(N18,Q18,T18)","v":0},null,null,0]
[2,{"$nulls":11},0,0,null,0,0,null,0,0,{"$f":"AVERAGE(N19,Q19,T19)","v":0},null,null,0]
[3,{"$nulls":11},0,0,null,0,0,null,0,0,{"$f":"AVERAGE(N20,Q20,T20)","v":0},null,null,0]
[4,{"$nulls":11},0,0,null,0,0,null,0,0,0,null,null,0]
[5,{"$nulls":11},0,0,null,0,0,null,0,0,0,null,null,0]
[6,{"$nulls":11},0,0,null,0,0,null,0,0,0,null,null,0]
[7,{"$nulls":11},0,0,null,0,0,null,0,0,0,null,null,0]
[8,{"$nulls":11},0,0,null,0,0,null,0,0,0,null,null,0]
[9,{"$nulls":11},0,0,null,0,0,null,0,0,0,null,null,0]
[10,{"$nulls":11},0,0,null,0,0,null,0,0,0,null,null,0]
[11,{"$nulls":11},0,0,null,0,0,null,0,0,0,null,null,0]
[12,{"$nulls":11},0,0,null,0,0,null,0,0,0,null,null,0]
[13,{"$nulls":11},0,0,null,0,0,null,0,0,0,null,null,0]
[14,{"$nulls":11},0,0,null,0,0,null,0,0,0,null,null,0]
[15,{"$nulls":11},0,0,null,0,0,null,0,0,0,null,null,0]
[16,{"$nulls":11},0,0,null,0,0,null,0,0,0,null,null,0]
[17,{"$nulls":11},0,0,null,0,0,null,0,0,0,null,null,0]
[18,{"$nulls":11},0,0,null,0,0,null,0,0,0,null,null,0]
[19,{"$nulls":11},0,0,null,0,0,null,0,0,0,null,null,0]
[20,{"$nulls":11},0,0,null,0,0,null,0,0,0,null,null,0]
[21,{"$nulls":11},0,0,null,0,0,null,0,0,0,null,null,0]
[22,{"$nulls":11},0,0,null,0,0,null,0,0,0,null,null,0]
[23,{"$nulls":11},0,0,null,0,0,null,0,0,0,null,null,0]
[24,{"$nulls":11},0,0,null,0,0,null,0,0,0,null,null,0]
[25,{"$nulls":11},0,0,null,0,0,null,0,0,0,null,null,0]
[26,{"$nulls":11},0,0,null,0,0,null,0,0,0,null,null,0]
[27,{"$nulls":11},0,0,null,0,0,null,0,0,0,null,null,0]
[28,{"$nulls":11},0,0,null,0,0,null,0,0,0,null,null,0]
[29,{"$nulls":11},0,0,null,0,0,null,0,0,0,null,null,0]
[30,{"$nulls":11},0,0,null,0,0,null,0,0,0,null,null,0]
[31,{"$nulls":11},0,0,null,0,0,null,0,0,0,null,null,0]
[32,{"$nulls":11},0,0,null,0,0,null,0,0,0,null,null,0]
[33,{"$nulls":11},0,0,null,0,0,null,0,0,0,null,null,0]
[34,{"$nulls":11},0,0,null,0,0,null,0,0,0,null,null,0]
[35,{"$nulls":11},0,0,null,0,0,null,0,0,0,null,null,0]
[36,{"$nulls":11},0,0,null,0,0,null,0,0,0,null,null,0]
[37,{"$nulls":11},0,0,null,0,0,null,0,0,0,null,null,0]
[38,{"$nulls":11},0,0,null,0,0,null,0,0,0,null,null,0]
[39,{"$nulls":11},0,0,null,0,0,null,0,0,0,null,null,0]
[40,{"$nulls":11},0,0,null,0,0,null,0,0,0,null,null,0]
[41,{"$nulls":11},0,0,null,0,0,null,0,0,0,null,null,0]
[42,{"$nulls":11},0,0,null,0,0,null,0,0,0,null,null,0]
[43,{"$nulls":11},0,0,null,0,0,null,0,0,0,null,null,0]
[44,{"$nulls":11},0,0,null,0,0,null,0,0,0,null,null,0]
[45,{"$nulls":11},0,0,null,0,0,null,0,0,0,null,null,0]
[46,{"$nulls":11},0,0,null,0,0,null,0,0,0,null,null,0]
[47,{"$nulls":11},0,0,null,0,0,null,0,0,0,null,null,0]
[48,{"$nulls":11},0,0,null,0,0,null,0,0,0,null,null,0]
[49,{"$nulls":11},0,0,null,0,0,null,0,0,0,null,null,0]
[50,{"$nulls":11},0,0,null,0,0,null,0,0,0,null,null,0]